bitfinex/quotes_BTCUSD_20250406
["timestamp","ask_amount","ask_price","bid_price","bid_amount"]
[1743912822691,0.002,83338.0,83336.0,0.18970865]
[1743912823359,0.342,83338.0,83336.0,0.02171565]
[1743912823539,0.508992,83338.0,83336.0,0.02171565]
[1743912823737,0.508992,83338.0,83333.0,0.179999]
[1743912823945,0.509992,83338.0,83334.0,0.02171829]
[1743912824146,0.509992,83338.0,83334.0,0.18971529]
[1743912824659,0.001,83338.0,83335.0,0.167995]
[1743912825013,0.001,83338.0,83336.0,0.02171565]
[1743912825342,0.002,83338.0,83336.0,0.02171565]
[1743912825715,0.519987,83340.0,83336.0,0.02171565]
[1743912826000,0.001,83338.0,83336.0,0.02171565]
[1743912826201,0.0013282,83338.0,83336.0,0.02171565]
[1743912826999,0.3413282,83338.0,83336.0,0.02171565]
[1743912827305,0.3423282,83338.0,83336.0,0.02171565]
[1743912827463,0.3433282,83338.0,83336.0,0.02171565]
[1743912827886,0.3423282,83338.0,83336.0,0.02171565]
[1743912828327,0.3433282,83338.0,83336.0,0.02171565]
[1743912829482,0.3433282,83338.0,83334.0,0.179996]
[1743912829687,0.3433282,83338.0,83337.0,0.02168726]
[1743912829908,0.3433282,83338.0,83334.0,0.179996]
[1743912830108,0.3433282,83338.0,83337.0,0.02168726]
[1743912830559,0.3543272,83338.0,83337.0,0.02168726]
[1743912831078,0.167992,83337.0,83332.0,0.180001]
[1743912831280,0.179991,83337.0,83332.0,0.012]
[1743912831503,0.167995,83336.0,83328.0,0.168009]
[1743912832465,0.167998,83334.0,83330.0,0.0485641]
[1743912832808,0.011999,83335.0,83330.0,0.0485641]
[1743912833015,0.011999,83335.0,83330.0,0.2165691]
[1743912833193,0.179997,83335.0,83330.0,0.0485641]
[1743912834109,0.168002,83333.0,83330.0,0.0485641]
[1743912834613,0.180004,83331.0,83330.0,0.0485641]
[1743912834854,0.180004,83331.0,83330.0,0.0495641]
[1743912835325,0.180004,83331.0,83330.0,0.0485641]
[1743912835708,0.180004,83331.0,83330.0,0.0495641]
[1743912836907,0.180004,83331.0,83330.0,0.0011641]
[1743912837235,0.180004,83331.0,83330.0,0.0001641]
[1743912837439,0.180004,83331.0,83330.0,0.0011641]
[1743912840016,0.180004,83331.0,83330.0,0.0001641]
[1743912840619,0.5752041,83331.0,83330.0,0.0011641]
[1743912841517,0.520004,83331.0,83330.0,0.0011641]
[1743912843371,0.520004,83331.0,83330.0,0.0001641]
[1743912844369,0.520004,83331.0,83330.0,0.0011641]
[1743912844808,0.520004,83331.0,83330.0,0.0001641]
[1743912851194,0.180032,83318.0,83317.0,0.08998706]
[1743912851719,0.180032,83318.0,83317.0,0.10674918]
[1743912852012,0.180032,83318.0,83317.0,0.07096923]
[1743912852211,0.180032,83318.0,83317.0,0.06993126]
[1743912852416,0.180032,83318.0,83317.0,0.04816203]
[1743912853522,0.180032,83318.0,83317.0,0.03950307]
[1743912853826,0.180032,83318.0,83317.0,0.04050307]
[1743912854050,0.2340407,83318.0,83317.0,0.04050307]
[1743912854309,0.16802,83323.0,83317.0,0.16340604]
[1743912854537,0.180025,83322.0,83318.0,0.12290297]
[1743912854770,0.180025,83322.0,83319.0,0.0471]
[1743912855170,0.180025,83322.0,83320.0,0.02177234]
[1743912855374,0.168015,83326.0,83320.0,0.02177234]
[1743912855515,0.168018,83325.0,83320.0,0.20179934]
[1743912855715,0.180019,83325.0,83320.0,0.03377334]
[1743912856184,0.168019,83324.0,83320.0,0.03377334]
[1743912856542,0.168019,83324.0,83321.0,0.0492]
[1743912856738,0.168019,83324.0,83322.0,0.02176971]
[1743912856950,0.012001,83323.0,83322.0,0.02176971]
[1743912857146,0.168019,83324.0,83322.0,0.02176971]
[1743912857566,0.18002,83324.0,83322.0,0.02176971]
[1743912857889,0.012001,83323.0,83322.0,0.02176971]
[1743912859288,0.012001,83323.0,83322.0,0.02276971]
[1743912859895,0.012001,83323.0,83322.0,0.02176971]
[1743912860095,0.012001,83323.0,83322.0,0.02276971]
[1743912860663,0.168002,83333.0,83322.0,0.02276971]
[1743912860811,0.168009,83329.0,83325.0,0.168016]
[1743912861020,0.168,83334.0,83328.0,0.18001]
[1743912861277,0.168003,83332.0,83329.0,0.0495]
[1743912861411,0.168003,83332.0,83329.0,0.07126047]
[1743912862762,0.169003,83332.0,83329.0,0.07126047]
[1743912863199,0.170003,83332.0,83329.0,0.07126047]
[1743912865085,0.168003,83332.0,83329.0,0.07126047]
[1743912866900,0.168003,83332.0,83329.0,0.07226047]
[1743912868160,0.168003,83332.0,83329.0,0.07126047]
[1743912868500,0.168003,83332.0,83329.0,0.07226047]
[1743912871090,0.012,83333.0,83329.0,0.24026747]
[1743912871270,0.012,83333.0,83329.0,0.07226047]
[1743912872202,0.012,83333.0,83329.0,0.07126047]
[1743912872494,0.012,83333.0,83329.0,0.07226047]
[1743912874277,0.282,83333.0,83329.0,0.07226047]
[1743912874482,0.012,83333.0,83329.0,0.07226047]
[1743912876704,0.0759086,83335.0,83329.0,0.07226047]
[1743912876916,0.012,83333.0,83329.0,0.07226047]
[1743912877575,0.012,83333.0,83329.0,0.07126047]
[1743912877780,0.34,83337.0,83330.0,0.25782371]
[1743912878002,0.519993,83337.0,83331.0,0.02172712]
[1743912878214,0.179993,83337.0,83331.0,0.18973012]
[1743912878370,0.179993,83337.0,83331.0,0.20173012]
[1743912878577,0.0123272,83338.0,83332.0,0.180001]
[1743912878775,0.0003282,83333.0,83332.0,0.180001]
[1743912881717,0.0003282,83333.0,83332.0,0.181001]
[1743912884719,0.0003282,83333.0,83332.0,0.40370397]
[1743912884927,0.0003282,83338.0,83337.0,0.279791]
[1743912885064,0.0003282,83338.0,83337.0,0.49706277]
[1743912885264,0.0003282,83338.0,83337.0,0.62918277]
[1743912886082,0.0003282,83338.0,83337.0,0.49706277]
[1743912886270,0.0003282,83338.0,83337.0,0.62918277]
[1743912886731,0.0003282,83338.0,83337.0,0.65083674]
[1743912887333,0.0003282,83338.0,83337.0,0.65977472]
[1743912888278,0.0003282,83338.0,83337.0,0.66177472]
[1743912894134,0.34,83368.0,83362.0,0.16794]
[1743912894542,0.35616899,83368.0,83363.0,0.0216197]
[1743912894698,0.36816399,83368.0,83363.0,0.0216197]
[1743912895323,0.02820958,83368.0,83363.0,0.0216197]
[1743912895525,0.02021458,83368.0,83364.0,0.167938]
[1743912895689,0.01621458,83368.0,83364.0,0.167938]
[1743912895889,0.01621458,83368.0,83365.0,0.02149725]
[1743912896140,0.02021458,83368.0,83365.0,0.02149725]
[1743912896342,0.02021458,83368.0,83367.0,0.011995]
[1743912896758,0.02421458,83368.0,83367.0,0.03348961]
[1743912896899,0.01621458,83368.0,83367.0,0.03348961]
[1743912897110,4.559e-05,83368.0,83367.0,0.15639258]
[1743912897316,0.00204559,83368.0,83367.0,0.2844995]
[1743912897518,0.00204559,83368.0,83367.0,0.28210104]
[1743912897717,4.559e-05,83368.0,83367.0,0.28210104]
[1743912898396,0.00204559,83368.0,83367.0,0.28210104]
[1743912898535,4.559e-05,83368.0,83367.0,0.28210104]
[1743912899624,4.559e-05,83368.0,83367.0,0.28510104]
[1743912902359,4.559e-05,83368.0,83367.0,0.20929258]
[1743912902853,4.559e-05,83368.0,83367.0,0.34137258]
[1743912904089,0.00020969,83368.0,83367.0,0.34137258]
[1743912916708,0.00020969,83368.0,83367.0,0.34170058]
[1743912921457,0.00020969,83368.0,83367.0,0.39090058]
[1743912921687,0.00020969,83368.0,83367.0,0.48605398]
[1743912923363,0.28020969,83368.0,83367.0,0.48605398]
[1743912923581,0.00020969,83368.0,83367.0,0.48605398]
[1743912929746,0.13568881,83387.0,83380.0,0.167904]
[1743912930022,0.13568881,83387.0,83381.0,0.14972692]
[1743912930530,0.179887,83386.0,83381.0,0.38087171]
[1743912931170,0.011992,83386.0,83381.0,0.38087171]
[1743912931713,0.012992,83386.0,83381.0,0.31762892]
[1743912932516,0.014992,83386.0,83381.0,0.31762892]
[1743912933763,0.182886,83386.0,83381.0,0.31762892]
[1743912934354,0.167897,83385.0,83381.0,0.18558892]
[1743912934565,0.167897,83385.0,83382.0,0.13204]
[1743912934981,0.167897,83385.0,83383.0,0.01768428]
[1743912935746,0.011992,83384.0,83383.0,0.01768428]
[1743912935950,0.179891,83383.0,83382.0,0.13204]
[1743912938197,0.011992,83384.0,83367.0,0.061523]
[1743912938198,0.011994,83372.0,83367.0,0.000328]
[1743912938417,0.011994,83372.0,83368.0,0.27296877]
[1743912938666,0.011994,83372.0,83368.0,0.29054927]
[1743912939083,0.011994,83373.0,83368.0,0.29054927]
[1743912939324,0.179915,83373.0,83368.0,0.29054927]
[1743912939748,0.179915,83373.0,83368.0,0.27252347]
[1743912940121,0.179915,83373.0,83368.0,0.44045247]
[1743912940353,0.167921,83373.0,83368.0,0.45244747]
[1743912941815,0.167921,83373.0,83368.0,0.45444747]
[1743912943866,0.167921,83373.0,83368.0,0.45477547]
[1743912944483,0.167917,83375.0,83369.0,0.17992]
[1743912944720,0.011993,83376.0,83368.0,0.28684647]
[1743912944933,0.011994,83374.0,83370.0,0.01758927]
[1743912945106,0.167923,83372.0,83369.0,0.14963059]
[1743912945316,0.167923,83372.0,83371.0,0.01758795]
[1743912945462,0.167923,83372.0,83370.0,0.01758927]
[1743912945866,0.179917,83372.0,83370.0,0.01758927]
[1743912946624,0.167923,83372.0,83370.0,0.01758927]
[1743912946925,0.179914,83373.0,83370.0,0.01758927]
[1743912947558,0.167923,83372.0,83370.0,0.01758927]
[1743912947955,0.179917,83372.0,83370.0,0.01758927]
[1743912949185,0.179917,83372.0,83370.0,0.01958927]
[1743912949686,0.409917,83372.0,83370.0,0.01958927]
[1743912949894,0.179917,83372.0,83370.0,0.01958927]
[1743912954182,0.011994,83371.0,83370.0,0.01958927]
[1743912955193,0.011994,83371.0,83370.0,0.01758927]
[1743912955398,0.011994,83371.0,83370.0,0.02058927]
[1743912956833,0.179917,83372.0,83370.0,0.02058927]
[1743912957803,0.179917,83372.0,83370.0,0.01758927]
[1743912958188,0.179917,83372.0,83370.0,0.01958927]
[1743912958395,0.235091,83372.0,83370.0,0.01991727]
[1743912958596,0.011994,83371.0,83370.0,0.01991727]
[1743912958801,0.011994,83371.0,83370.0,0.002328]
[1743912960339,0.059194,83371.0,83370.0,0.000328]
[1743912960967,0.059194,83371.0,83370.0,0.001328]
[1743912962073,0.059194,83371.0,83370.0,0.000328]
[1743912966157,0.399194,83371.0,83370.0,0.000328]
[1743912972893,0.351994,83371.0,83370.0,0.000328]
[1743912979956,1.214606,83371.0,83370.0,0.000328]
[1743912980554,1.003075,83371.0,83370.0,0.000328]
[1743912981199,0.982562,83371.0,83370.0,0.000328]
[1743912981700,0.945662,83371.0,83370.0,0.000328]
[1743912982249,0.505096,83371.0,83370.0,0.000328]
[1743912983196,0.505096,83371.0,83352.0,0.226458]
[1743912983197,0.179997,83334.0,83326.0,0.01]
[1743912983767,0.20043651,83334.0,83333.0,0.00037379]
[1743912984455,0.20043651,83334.0,83333.0,0.00537379]
[1743912985883,0.20043651,83334.0,83333.0,0.00037379]
[1743912986337,0.20043651,83334.0,83333.0,0.00337379]
[1743912987801,0.20043651,83334.0,83333.0,0.00037379]
[1743912989020,0.20043651,83334.0,83333.0,0.00237379]
[1743912996922,0.46043651,83334.0,83333.0,0.00237379]
[1743912997130,0.20043651,83334.0,83333.0,0.00237379]
[1743913007821,0.20043651,83334.0,83333.0,0.00037379]
[1743913008119,0.20043651,83334.0,83333.0,0.00137379]
[1743913022058,0.34,83335.0,83333.0,0.00137379]
[1743913022490,0.167998,83334.0,83333.0,0.00137379]
[1743913022826,0.19886823,83334.0,83333.0,0.00137379]
[1743913023225,0.19886823,83334.0,83333.0,0.00037379]
[1743913023585,0.19886823,83334.0,83333.0,0.00137379]
[1743913024025,0.19886823,83334.0,83333.0,0.00037379]
[1743913024377,0.53886823,83334.0,83333.0,0.00137379]
[1743913033517,0.53886823,83334.0,83333.0,0.0004771]
[1743913034809,0.16801,83329.0,83327.0,0.03963847]
[1743913035027,0.18001,83329.0,83327.0,0.03963847]
[1743913035191,0.18001,83329.0,83328.0,0.01517421]
[1743913035593,0.180012,83327.0,83326.0,0.01]
[1743913036552,0.520012,83327.0,83326.0,0.01]
[1743913036922,0.520012,83327.0,83326.0,0.013]
[1743913037214,0.750012,83327.0,83326.0,0.01]
[1743913037394,0.520012,83327.0,83326.0,0.01]
[1743913037724,0.520012,83327.0,83326.0,0.011]
[1743913039253,0.520012,83327.0,83326.0,0.01]
[1743913039577,0.012,83327.0,83326.0,0.01]
[1743913039790,0.180012,83327.0,83326.0,0.011]
[1743913040549,0.180012,83327.0,83326.0,0.01]
[1743913042170,0.181012,83327.0,83326.0,0.01]
[1743913042546,0.182012,83327.0,83326.0,0.01]
[1743913046564,0.182012,83327.0,83326.0,0.0594]
[1743913046777,0.342,83327.0,83326.0,0.07465681]
[1743913047395,0.002,83327.0,83326.0,0.25303106]
[1743913047603,0.002,83327.0,83326.0,0.43425106]
[1743913048362,0.001,83327.0,83326.0,0.39078078]
[1743913048763,0.00037379,83334.0,83333.0,0.012]
[1743913048989,0.00037379,83334.0,83333.0,0.36755055]
[1743913049389,0.00037379,83334.0,83333.0,0.41665055]
[1743913049982,0.00037379,83334.0,83333.0,0.41765055]
[1743913050525,0.00037379,83334.0,83333.0,0.41665055]
[1743913050684,0.00037379,83334.0,83333.0,0.41765055]
[1743913050909,0.00037379,83334.0,83333.0,0.49541701]
[1743913051642,0.00037379,83334.0,83333.0,0.41765055]
[1743913052007,0.00037379,83334.0,83333.0,0.41665055]
[1743913052207,0.00037379,83334.0,83333.0,0.41965055]
[1743913052938,0.00037379,83334.0,83333.0,0.41665055]
[1743913053139,0.00037379,83334.0,83333.0,0.41965055]
[1743913061829,0.25037379,83334.0,83333.0,0.41965055]
[1743913062022,0.00037379,83334.0,83333.0,0.41965055]
[1743913062919,0.179971,83347.0,83341.0,0.167983]
[1743913063105,0.179971,83347.0,83342.0,0.25498297]
[1743913063332,0.179971,83347.0,83342.0,0.27005244]
[1743913065339,0.1800367,83347.0,83342.0,0.27005244]
[1743913066642,0.1800367,83347.0,83342.0,0.43903344]
[1743913066643,0.0120637,83347.0,83342.0,0.43903344]
[1743913066860,6.57e-05,83347.0,83344.0,0.167977]
[1743913067090,6.57e-05,83347.0,83345.0,0.167974]
[1743913067407,6.57e-05,83347.0,83346.0,0.057198]
[1743913067824,6.57e-05,83347.0,83346.0,0.0722622]
[1743913068463,6.57e-05,83347.0,83346.0,0.2043422]
[1743913069128,6.57e-05,83347.0,83346.0,0.2053422]
[1743913071167,6.57e-05,83347.0,83346.0,0.46895219]
[1743913071974,6.57e-05,83347.0,83346.0,0.37614517]
[1743913083815,6.57e-05,83347.0,83346.0,0.24406517]
[1743913083997,6.57e-05,83347.0,83346.0,0.37614517]
[1743913085829,6.57e-05,83347.0,83346.0,0.37514517]
[1743913086042,6.57e-05,83347.0,83346.0,0.38968602]
[1743913086362,0.167911,83378.0,83373.0,0.167918]
[1743913086783,0.179908,83376.0,83371.0,0.011994]
[1743913087148,0.179908,83376.0,83372.0,0.01564872]
[1743913087321,0.167917,83375.0,83372.0,0.01564872]
[1743913087529,0.179908,83376.0,83372.0,0.01564872]
[1743913087530,0.011993,83376.0,83372.0,0.01564872]
[1743913087735,0.179907,83376.0,83372.0,0.01564872]
[1743913088442,6.572e-05,83379.0,83377.0,0.16791]
[1743913088652,6.572e-05,83379.0,83378.0,0.011993]
[1743913088914,6.572e-05,83379.0,83378.0,0.02757918]
[1743913089708,0.00206572,83379.0,83378.0,0.02757918]
[1743913091266,6.572e-05,83379.0,83378.0,0.02757918]
[1743913091469,0.00106572,83379.0,83378.0,0.02757918]
[1743913091671,0.01305872,83379.0,83378.0,0.01558618]
[1743913091977,0.06295872,83379.0,83378.0,0.01558618]
[1743913092180,0.179927,83367.0,83362.0,0.13208]
[1743913092337,0.179927,83367.0,83363.0,0.12290297]
[1743913092709,0.011995,83364.0,83363.0,0.01550124]
[1743913092882,0.16794,83363.0,83357.0,0.179946]
[1743913093081,0.011995,83364.0,83359.0,0.179942]
[1743913093286,0.011996,83359.0,83358.0,0.01550782]
[1743913093445,0.011996,83359.0,83352.0,0.13208]
[1743913093788,0.011996,83359.0,83358.0,0.01550782]
[1743913093960,0.011996,83359.0,83354.0,0.011997]
[1743913094491,0.179945,83359.0,83355.0,0.01556839]
[1743913094715,0.011996,83358.0,83355.0,0.01556839]
[1743913094903,0.179943,83360.0,83355.0,0.18352439]
[1743913095127,0.179927,83367.0,83357.0,0.179948]
[1743913095330,0.179934,83364.0,83358.0,0.167948]
[1743913095528,0.011995,83366.0,83359.0,0.179942]
[1743913095731,0.179931,83365.0,83359.0,0.011996]
[1743913095891,0.179931,83365.0,83360.0,0.01556539]
[1743913096289,0.16794,83363.0,83358.0,0.167948]
[1743913096519,0.011995,83362.0,83361.0,0.01556407]
[1743913096724,0.011995,83362.0,83356.0,0.167953]
[1743913097084,0.011995,83362.0,83359.0,0.001]
[1743913097269,0.011995,83362.0,83357.0,0.01556934]
[1743913097463,0.011995,83362.0,83358.0,0.001]
[1743913097666,0.179938,83362.0,83358.0,0.01656803]
[1743913097895,0.179938,83362.0,83358.0,0.001]
[1743913098078,0.179938,83362.0,83359.0,0.01556671]
[1743913098550,0.16794,83363.0,83359.0,0.01556671]
[1743913098751,0.179935,83363.0,83358.0,0.179945]
[1743913099107,0.179938,83362.0,83359.0,0.01556671]
[1743913099277,0.179938,83362.0,83359.0,0.01756671]
[1743913099477,0.179938,83362.0,83359.0,0.002]
[1743913099478,0.011996,83360.0,83359.0,0.002]
[1743913100450,0.011996,83360.0,83359.0,0.003]
[1743913100789,0.011996,83360.0,83359.0,0.002]
[1743913100957,0.011996,83360.0,83359.0,0.003]
[1743913101159,0.011996,83360.0,83359.0,0.001]
[1743913101412,0.011996,83356.0,83349.0,0.179963]
[1743913101829,0.011996,83356.0,83350.0,0.179962]
[1743913102817,0.011996,83356.0,83351.0,0.011997]
[1743913103018,0.011996,83356.0,83352.0,0.167962]
[1743913103213,0.011996,83355.0,83350.0,0.012997]
[1743913103422,0.011997,83354.0,83350.0,0.001]
[1743913103739,0.011997,83354.0,83350.0,0.002]
[1743913104037,0.011997,83354.0,83350.0,0.001]
[1743913104273,0.011997,83354.0,83346.0,0.1681381]
[1743913104470,0.011997,83354.0,83350.0,0.001]
[1743913104690,0.011997,83354.0,83351.0,0.001]
[1743913105021,0.011997,83354.0,83350.0,0.167966]
[1743913105701,0.011997,83354.0,83350.0,0.169966]
[1743913106129,0.011997,83354.0,83350.0,0.170966]
[1743913107441,0.0003282,83356.0,83355.0,0.059296]
[1743913107652,0.0003282,83356.0,83355.0,0.227252]
[1743913108625,0.0003282,83356.0,83355.0,0.228252]
[1743913109500,0.0003282,83356.0,83355.0,0.229252]
[1743913111569,0.0003282,83356.0,83355.0,0.24490807]
[1743913111767,0.2303282,83356.0,83355.0,0.24490807]
[1743913111978,0.0003282,83356.0,83355.0,0.24490807]
[1743913113192,0.0003282,83356.0,83355.0,0.36781104]
[1743913113431,0.0003282,83356.0,83355.0,0.63086955]
[1743913114154,0.0003282,83356.0,83355.0,0.62986955]
[1743913114467,0.0003282,83356.0,83355.0,0.63386955]
[1743913114973,0.0003282,83356.0,83355.0,0.62986955]
[1743913115243,0.0003282,83356.0,83355.0,0.63386955]
[1743913115602,0.0003282,83356.0,83355.0,0.63586955]
[1743913116010,0.0003282,83356.0,83355.0,0.63386955]
[1743913116243,0.0003282,83356.0,83355.0,0.63586955]
[1743913118977,0.0003282,83356.0,83355.0,0.63603355]
[1743913119187,0.0003282,83356.0,83355.0,0.37297504]
[1743913119350,0.0003282,83356.0,83355.0,0.32567504]
[1743913120438,0.0003282,83356.0,83355.0,0.32067504]
[1743913120837,0.0003282,83356.0,83355.0,0.32467504]
[1743913121486,0.0003282,83356.0,83355.0,0.32067504]
[1743913121658,0.0003282,83356.0,83355.0,0.31867504]
[1743913122057,0.0003282,83356.0,83355.0,0.32067504]
[1743913122445,0.0003282,83356.0,83355.0,0.32467504]
[1743913122645,0.0003282,83356.0,83355.0,0.43027224]
[1743913123264,0.0003282,83356.0,83355.0,0.42827224]
[1743913123576,0.0003282,83356.0,83355.0,0.47717224]
[1743913123780,0.0003282,83356.0,83355.0,0.47317224]
[1743913124126,0.0003282,83356.0,83355.0,0.47717224]
[1743913124475,0.0003282,83356.0,83355.0,0.52297224]
[1743913127053,0.0003282,83356.0,83355.0,0.54965504]
[1743913129427,0.0003282,83356.0,83355.0,0.56419589]
[1743913130019,0.0003282,83356.0,83355.0,0.56019589]
[1743913130449,0.0003282,83356.0,83355.0,0.56619589]
[1743913131016,0.0003282,83356.0,83355.0,0.56419589]
[1743913131133,0.0003282,83356.0,83355.0,0.67580318]
[1743913131333,0.0003282,83356.0,83355.0,0.68080318]
[1743913144183,0.0003282,83356.0,83355.0,0.56919589]
[1743913144734,0.0003282,83356.0,83355.0,0.55465504]
[1743913145097,0.0003282,83356.0,83355.0,0.55441504]
[1743913145528,0.0003282,83356.0,83355.0,0.42237504]
[1743913145835,0.0003282,83356.0,83355.0,0.55441504]
[1743913146353,0.0003282,83356.0,83355.0,0.66504424]
[1743913147500,0.0003282,83356.0,83355.0,0.67958509]
[1743913147867,0.0003282,83356.0,83355.0,1.01958509]
[1743913148273,2e-07,83356.0,83355.0,1.01958509]
[1743913148604,2e-07,83356.0,83355.0,1.01458509]
[1743913149011,0.0010002,83356.0,83355.0,1.01958509]
[1743913149462,0.2610002,83356.0,83355.0,1.01958509]
[1743913149673,0.0010002,83356.0,83355.0,1.01358509]
[1743913149859,0.0010002,83356.0,83355.0,1.01958509]
[1743913150614,2e-07,83356.0,83355.0,1.01958509]
[1743913152370,2e-07,83356.0,83355.0,1.04458509]
[1743913154332,2e-07,83356.0,83355.0,1.03858509]
[1743913154751,0.000328,83372.0,83371.0,0.179918]
[1743913154964,0.000328,83372.0,83371.0,0.45981177]
[1743913155139,0.000328,83372.0,83371.0,0.47268564]
[1743913155338,6.572e-05,83379.0,83371.0,0.47268564]
[1743913155339,6.572e-05,83379.0,83378.0,0.179903]
[1743913155588,6.572e-05,83379.0,83378.0,0.7532448]
[1743913155784,6.572e-05,83379.0,83378.0,0.74905234]
[1743913156032,6.572e-05,83379.0,83378.0,0.47416114]
[1743913156162,6.572e-05,83379.0,83378.0,0.56064114]
[1743913156798,6.572e-05,83379.0,83378.0,0.42856114]
[1743913156998,6.572e-05,83379.0,83378.0,0.56068114]
[1743913157203,6.572e-05,83379.0,83378.0,0.56268114]
[1743913157422,6.572e-05,83379.0,83378.0,0.43156114]
[1743913157784,0.00022972,83379.0,83378.0,0.56368114]
[1743913159395,0.00022972,83379.0,83378.0,0.56168114]
[1743913159900,0.25022972,83379.0,83378.0,0.56468114]
[1743913160045,0.00022972,83379.0,83378.0,0.56468114]
[1743913160255,0.00022972,83379.0,83378.0,0.56368114]
[1743913160459,0.00022972,83379.0,83378.0,0.43356114]
[1743913160666,0.00022972,83379.0,83378.0,0.56560114]
[1743913161847,0.00022972,83379.0,83378.0,0.43356114]
[1743913162095,0.00022972,83379.0,83378.0,0.56560114]
[1743913163142,0.00022972,83379.0,83378.0,0.45259234]
[1743913165573,0.00022972,83379.0,83378.0,0.50159234]
[1743913165776,0.00022972,83379.0,83378.0,0.55109234]
[1743913166719,0.00022972,83379.0,83378.0,0.54909234]
[1743913168627,0.00022972,83379.0,83378.0,0.55209234]
[1743913168827,0.00022972,83379.0,83378.0,0.57818832]
[1743913169814,0.00022972,83379.0,83378.0,0.57814832]
[1743913169997,0.00022972,83379.0,83378.0,0.45355234]
[1743913172041,0.00022972,83379.0,83378.0,0.32155234]
[1743913172369,0.00022972,83379.0,83378.0,0.45355234]
[1743913175092,0.27022972,83379.0,83378.0,0.45355234]
[1743913175375,0.00022972,83379.0,83378.0,0.53492247]
[1743913182755,0.00022972,83379.0,83378.0,0.40292247]
[1743913182919,0.00022972,83379.0,83378.0,0.53492247]
[1743913186544,0.25022972,83379.0,83378.0,0.53492247]
[1743913186758,0.00022972,83379.0,83378.0,0.53492247]
[1743913190628,0.14510387,83395.0,83390.0,0.179874]
[1743913191038,0.14510387,83395.0,83391.0,0.01263808]
[1743913191240,0.14510387,83395.0,83392.0,0.132]
[1743913191603,0.15709487,83395.0,83393.0,0.01263545]
[1743913192404,0.226064,83396.0,83393.0,0.01263545]
[1743913192605,0.167876,83395.0,83393.0,0.01263545]
[1743913192808,0.226064,83396.0,83393.0,0.01263545]
[1743913193036,0.226064,83396.0,83393.0,0.14463545]
[1743913195451,0.167877,83394.0,83393.0,0.14463545]
[1743913195711,0.011991,83395.0,83393.0,0.14463545]
[1743913196835,0.179867,83395.0,83393.0,0.14463545]
[1743913200801,0.011991,83394.0,83393.0,0.14463545]
[1743913201210,0.011991,83394.0,83393.0,0.132]
[1743913201417,0.011991,83394.0,83379.0,0.011993]
[1743913201418,0.011992,83385.0,83379.0,0.011993]
[1743913201631,0.167903,83381.0,83380.0,0.132]
[1743913202081,0.179896,83381.0,83380.0,0.132]
[1743913202659,0.011992,83383.0,83380.0,0.132]
[1743913202870,0.179893,83382.0,83380.0,0.132]
[1743913203469,0.011993,83381.0,83380.0,0.132]
[1743913203639,0.011993,83381.0,83380.0,0.135]
[1743913203856,0.011993,83381.0,83380.0,0.137]
[1743913204057,0.167899,83384.0,83380.0,0.135]
[1743913204285,0.179882,83388.0,83380.0,0.311897]
[1743913204458,0.18731752,83384.0,83380.0,0.134]
[1743913204660,0.179891,83384.0,83380.0,0.134]
[1743913205247,0.011992,83383.0,83380.0,0.132]
[1743913205596,0.167907,83379.0,83376.0,0.132]
[1743913206344,0.011993,83380.0,83376.0,0.132]
[1743913206779,0.179893,83382.0,83377.0,0.179903]
[1743913207072,0.011992,83382.0,83377.0,0.011993]
[1743913207946,0.011992,83382.0,83377.0,0.012993]
[1743913208332,0.167905,83381.0,83377.0,0.001]
[1743913209124,0.011992,83383.0,83378.0,0.179903]
[1743913209322,0.011992,83383.0,83380.0,0.000328]
[1743913209562,0.179893,83383.0,83380.0,0.000328]
[1743913210197,0.16789,83388.0,83384.0,0.167896]
[1743913210400,0.167894,83386.0,83382.0,0.011992]
[1743913211302,0.179882,83388.0,83383.0,0.167899]
[1743913211790,0.34,83394.0,83390.0,0.011991]
[1743913212196,0.34,83394.0,83388.0,0.167889]
[1743913212352,0.34,83394.0,83388.0,0.179881]
[1743913212761,0.51987,83394.0,83388.0,0.179881]
[1743913214508,0.179872,83393.0,83388.0,0.17898382]
[1743913215167,0.179872,83393.0,83388.0,0.17204426]
[1743913215773,0.179872,83393.0,83388.0,0.16410758]
[1743913215997,0.179872,83393.0,83388.0,0.15612668]
[1743913216426,0.179872,83393.0,83388.0,0.14413468]
[1743913216622,0.011991,83392.0,83389.0,0.01264891]
[1743913216975,0.179874,83392.0,83389.0,0.01264891]
[1743913217392,0.351991,83394.0,83389.0,0.01264891]
[1743913217739,0.167883,83392.0,83389.0,0.01264891]
[1743913217939,0.179874,83392.0,83387.0,0.011992]
[1743913218200,0.179876,83391.0,83390.0,0.01264759]
[1743913218398,0.179876,83391.0,83386.0,0.179885]
[1743913218600,0.179876,83391.0,83390.0,0.01264759]
[1743913218742,0.179876,83391.0,83386.0,0.179885]
[1743913218937,0.179876,83391.0,83390.0,0.01264759]
[1743913219165,0.179876,83391.0,83386.0,0.179885]
[1743913219508,0.179876,83391.0,83390.0,0.01264759]
[1743913219703,0.179876,83391.0,83386.0,0.011992]
[1743913220384,0.179876,83391.0,83387.0,0.01265154]
[1743913220582,0.011991,83393.0,83387.0,0.01265154]
[1743913220781,0.167881,83392.0,83387.0,0.02464354]
[1743913221211,0.167885,83391.0,83387.0,0.01265154]
[1743913221350,0.179876,83391.0,83387.0,0.01265154]
[1743913223035,0.179876,83391.0,83388.0,0.13216]
[1743913223465,0.179876,83391.0,83389.0,0.01264891]
[1743913225536,0.449876,83391.0,83389.0,0.01264891]
[1743913225751,0.179876,83391.0,83389.0,0.01264891]
[1743913230886,0.011991,83390.0,83389.0,0.01264891]
[1743913231391,0.011991,83390.0,83389.0,0.02011501]
[1743913237541,0.281991,83390.0,83389.0,0.02011501]
[1743913237713,0.011991,83390.0,83389.0,0.02011501]
[1743913239364,0.179872,83392.0,83389.0,0.02011501]
[1743913239686,0.000164,83390.0,83389.0,0.02011501]
[1743913240495,0.000164,83390.0,83389.0,0.03210601]
[1743913247601,0.000164,83390.0,83389.0,0.02011501]
[1743913247805,0.02013549,83390.0,83389.0,0.02011501]
[1743913247980,0.012155,83390.0,83389.0,0.02011501]
[1743913248659,0.107755,83390.0,83389.0,0.02011501]
[1743913248866,0.179878,83389.0,83388.0,0.000328]
[1743913255024,0.519878,83389.0,83388.0,0.000328]
[1743913255623,1.209263,83389.0,83388.0,0.000328]